Cogmind - Beta 14 @@@ ROGUE MODE // 2024.09.20 @ 18:46:35 Player: Omega Result: Destroyed by G-47 Trooper with Particle Gun Performance ------------- Evolutions (2) 1000 Regions Visited (4) 800 Robots Destroyed (21) 105 Value Destroyed (629) 629 Prototype IDs (2) 40 Alien Tech Used (0) 0 Bonus (393) 393 TOTAL SCORE: 2967 Bonus ------- Follower Combat Kills 393 Cogmind --------- Core Integrity 0/550 Matter 300/300 Energy 53/100 System Corruption 5% Temperature Danger (472) Movement Core (350) Ox6 Location -8/Materials Parts ------- > --- POWER (2) -------- (None) > --- PROPULSION (3) --- (None) > --- UTILITY (4) ------ Large Storage Unit > --- WEAPON (2) ------- (None) > --- INVENTORY (15) --- Light Deuterium Engine Light Deuterium Engine Aluminum Leg Improved Aluminum Leg Improved Heat Sink Advanced Targeting Computer Advanced Targeting Computer Particle Charger Particle Charger Drone Bay (2/2) Drone Bay (2/2) Peak State ------------ > --- POWER ------------ Light Deuterium Engine Light Deuterium Engine > --- PROPULSION ------- Improved Aluminum Leg Improved Aluminum Leg Titanium Leg > --- UTILITY ---------- Large Storage Unit Improved Sensor Array Advanced Targeting Computer Improved Light Armor Plating > --- WEAPON ----------- Advanced Beam Cannon Advanced Beam Cannon > --- INVENTORY -------- Light Deuterium Engine Light Deuterium Engine Aluminum Leg Improved Aluminum Leg Weight Redist. System Advanced Targeting Computer Advanced Targeting Computer Light Armor Plating Drone Bay Drone Bay Drone Bay Drone Bay Drone Bay Drone Bay Advanced Beam Cannon [Rating: 34] Favorites ----------- Power Light Deuterium Engine Engine Light Deuterium Engine Propulsion Improved Aluminum Leg Leg Improved Aluminum Leg Utility Large Storage Unit Device Seismic Detector Storage Large Storage Unit Processor Advanced Targeting Computer Protection Improved Light Armor Plating Weapon Assault Rifle Energy Gun Shock Rifle Energy Cannon Advanced Beam Cannon Ballistic Gun Assault Rifle Build | -11 -10 -9 -9 -8 ------- Run | Yrd Mat Mat Sto Mat Slots Evolved 4 | . . 2 . 2 Power 1 | . . . . 1 Propulsion 1 | . . 1 . . Utility 2 | . . 1 . 1 Weapon . | . . . . . Parts Attached 46 | 7 3 9 17 10 Power 5 | 1 1 2 . 1 Engine 5 | 1 1 2 . 1 Core . | . . . . . Reactor . | . . . . . Propulsion 11 | 2 1 1 6 1 Treads . | . . . . . Leg 11 | 2 1 1 6 1 Wheel . | . . . . . Hover . | . . . . . Flight . | . . . . . Utility 13 | 1 1 3 1 7 Device 7 | . . 1 1 5 Storage 3 | 1 1 1 . . Processor 1 | . . 1 . . Hackware . | . . . . . Protection 2 | . . . . 2 Artifact . | . . . . . Weapon 17 | 3 . 3 10 1 Energy Gun 10 | 1 . 2 6 1 Energy Cannon 2 | . . . 2 . Ballistic Gun 5 | 2 . 1 2 . Ballistic Cannon . | . . . . . Launcher . | . . . . . Special Weapon . | . . . . . Impact Weapon . | . . . . . Slashing Weapon . | . . . . . Piercing Weapon . | . . . . . Special Melee Weapon . | . . . . . Unidentified Prototypes 2 | . . . 2 . Parts Lost 18 | . . . 5 13 Power 2 | . . . . 2 Propulsion 3 | . . . . 3 Utility 6 | . . . . 6 Weapon 7 | . . . 5 2 Highest Loss Streak 13 | . . . 2 13 To Critical Strikes . | . . . . . Average Slot Usage (%) 96 | . 85 91 99 95 Engine 12 | . 14 11 11 16 Leg 30 | . 28 33 33 25 Device 8 | . . 8 11 8 Storage 10 | . 14 11 11 9 Processor 8 | . . 5 11 8 Protection 2 | . . . . 8 Energy Gun 7 | . . 9 12 . Energy Cannon 5 | . . . 1 17 Ballistic Gun 8 | . 28 12 7 . Peak Build Rating 34 | 6 7 20 25 34 Average Rating 20 | 4 6 14 19 31 On Entrance 11 | . 6 7 20 25 Naked Turns . | . . . . . Heaviest Build 42 | 14 19 32 34 42 Greatest Support 43 | 20 20 30 39 43 Greatest Overweight (x) 1 | . . 1 1 1 Average Overweight (x) . | . . . . . Largest Inventory Capacity 15 | 8 10 15 15 15 Average Capacity 14 | 6 9 14 15 15 Most Carried 15 | 2 9 15 15 15 Average Carried 12 | 1 5 11 13 14 Final Capacity 15 | 8 10 15 15 15 Final Carried 15 | 2 9 15 15 11 Class Distribution -------------------- 96% | Mutant 3% | Commander-Mutant Dominant Class ---------------- Mutant | -10/Materials Mutant | -9/Materials Mutant | -9/Storage Mutant | -8/Materials Resources | -11 -10 -9 -9 -8 ----------- Run | Yrd Mat Mat Sto Mat Matter Collected 833 | 218 136 41 254 184 Remotely . | . . . . . Salvage Created 968 | . 199 41 608 120 Parts 52 | . 10 3 35 4 Haulers Intercepted 3 | . 1 . 1 1 Recyclers Shooed . | . . . . . Parts Field Recycled . | . . . . . Retrieved Matter . | . . . . . Parts Self-Destructed . | . . . . . Prevented . | . . . . . Kills | -11 -10 -9 -9 -8 ------- Run | Yrd Mat Mat Sto Mat Combat Hostiles Destroyed 15 | . 2 1 11 1 Guns 12 | . 2 1 9 . Cannons 1 | . . . . 1 AOE 1 | . . . 1 . Classes Destroyed 6 | . 3 . 1 2 Worker 1 | . . . . 1 Hauler 3 | . 1 . 1 1 Recycler 1 | . 1 . . . Operator 1 | . . . . 1 Grunt 11 | . 2 1 7 1 Sentry 4 | . . . 4 . Best Kill Streak 3 | . 3 1 2 1 Combat Bots Only 2 | . 2 1 2 1 Max Kills in Single Turn 1 | . 1 1 1 1 Gunslinging . | . . . . . Exploded 1 | . . . 1 . Melee . | . . . . . Uniques/NPCs Destroyed . | . . . . . Combat | -11 -10 -9 -9 -8 -------- Run | Yrd Mat Mat Sto Mat Hostile Shots Fired 250 | . 13 27 53 157 Missed 62 | . 5 9 15 33 Damage Taken 2934 | . 83 233 591 2027 Core 734 | . . 80 96 558 Absorbed by Shields . | . . . . . Core Remaining (%) 85 | 100 100 . 56 . Volleys Fired 74 | . 9 3 47 15 Largest 2 | . 2 2 2 2 Hottest 136 | . 40 100 100 136 Shots Fired 134 | . 18 6 85 25 Gun 112 | . 18 6 85 3 Cannon 22 | . . . . 22 Launcher . | . . . . . Special . | . . . . . Kinetic 49 | . 18 . 31 . Thermal 39 | . . . 14 25 Explosive . | . . . . . Electromagnetic 46 | . . 6 40 . Robot Hit Streak 22 | . 3 4 22 6 Robot Miss Streak 3 | . 3 1 2 3 Penetration Max . | . . . . . Secondary Targets 1 | . . 1 . . Max Gunslinging Chain 1 | . . 1 . . Shots Hit Robots 89 | . 9 5 60 15 Core Hits 36 | . 5 1 23 7 Critical Kills . | . . . . . Critical Parts Destroyed . | . . . . . Critical Strikes . | . . . . . Melee Attacks . | . . . . . Impact . | . . . . . Slashing . | . . . . . Piercing . | . . . . . Sneak Attacks . | . . . . . Combat Hostiles . | . . . . . Follow-up Attacks . | . . . . . Damage Inflicted 1525 | . 110 95 967 353 Guns 1190 | . 110 95 920 65 Cannons 287 | . . . . 287 Explosions 41 | . . . 41 . Melee . | . . . . . Ramming 7 | . . . 6 1 Kinetic 430 | . 110 . 320 . Thermal 505 | . . . 153 352 Explosive . | . . . . . Electromagnetic 583 | . . 95 488 . Impact . | . . . . . Slashing . | . . . . . Piercing . | . . . . . Highest Corruption 5 | . . . . 5 Average Corruption 4 | . . . . 4 Corruption Purged . | . . . . . Corruption Blocked . | . . . . . Effects 1 | . . . . 1 Message Errors 1 | . . . . 1 Overload Shots . | . . . . . Overflow Damage 4 | . . . 4 . Projectiles . | . . . . . Explosions 4 | . . . 4 . Melee . | . . . . . Knockbacks . | . . . . . Impact . | . . . . . Kinetic . | . . . . . Secondary . | . . . . . Self-Inflicted Damage 36 | . . . 36 . Shots 1 | . . . 1 . Rammed 2 | . . . . 2 Targets Rammed 6 | . . . 3 3 Kicked 4 | . . . 3 1 Crushed . | . . . . . Highest Temperature 583 | . . 132 210 583 Average Temperature 143 | . . 67 64 248 Received Heat Transfer 1179 | . 36 129 267 747 Effects 11 | . . . . 11 Shutdowns 1 | . . . . 1 Interference 2 | . . . . 2 Matter Decay 1 | . . . . 1 Short Circuit 2 | . . . . 2 Damage (major) 3 | . . . . 3 Damage (core) 2 | . . . . 2 Siege Activations . | . . . . . Robots Corrupted 1 | . . . 1 . Combat Hostiles 1 | . . . 1 . Parts Fried 3 | . . 1 2 . Impact Corruptions . | . . . . . Robots Melted . | . . . . . Combat Hostiles . | . . . . . Parts Melted 1 | . . . . 1 Heat Transferred 929 | . . . 300 629 Parts Sabotaged . | . . . . . Parts Stolen . | . . . . . Parts Stripped . | . . . . . Power Chain Reactions 1 | . . . 1 . Alert | -11 -10 -9 -9 -8 ------- Run | Yrd Mat Mat Sto Mat Peak Influence 415 | . 66 65 415 337 Initial 129 | . . 27 27 129 Average 172 | . 25 36 212 229 Maximum Alert Level 2 | . . . 2 1 Low Security (%) 58 | 100 100 100 46 42 Level 1 41 | . . . 52 57 Level 2 . | . . . . . Level 3 . | . . . . . Level 4 . | . . . . . Level 5 . | . . . . . High Security . | . . . . . Max Security . | . . . . . Squads Dispatched 9 | . 1 1 5 2 Investigation 3 | . . . 2 1 Extermination . | . . . . . Reinforcement 4 | . 1 1 1 1 Assault 2 | . . . 2 . Garrison . | . . . . . Intercept . | . . . . . Searches Triggered . | . . . . . Construction Impeded . | . . . . . Haulers Reinforced . | . . . . . Active Scanning Responses . | . . . . . Cargo Convoy Interrupts . | . . . . . Stealth | -11 -10 -9 -9 -8 --------- Run | Yrd Mat Mat Sto Mat Distress Signals 8 | . . . 3 5 Communications Jammed . | . . . . . Distress Signals . | . . . . . Times Spotted 56 | . 10 6 19 21 Peak Tracking Total 13 | . 7 5 7 13 Tactical Retreats 1 | . . . 1 . Traps | -11 -10 -9 -9 -8 ------- Run | Yrd Mat Mat Sto Mat Traps Triggered 2 | . . . 2 . Indirectly . | . . . . . Trap Hack Attempts . | . . . . . Triggered . | . . . . . Disarmed . | . . . . . Reprogrammed . | . . . . . Reused . | . . . . . Traps Extracted . | . . . . . Installed . | . . . . . Triggered . | . . . . . Machines | -11 -10 -9 -9 -8 ---------- Run | Yrd Mat Mat Sto Mat Machines Disabled 2 | . . . 2 . Max in Single Turn 1 | . . . 1 . Machines Repaired . | . . . . . Machines Dismantled . | . . . . . Machines Sabotaged . | . . . . . Overloaded Fab Kills . | . . . . . Hacking | -11 -10 -9 -9 -8 --------- Run | Yrd Mat Mat Sto Mat Machines Accessed 17 | . 2 1 9 5 Terminals 17 | . 2 1 9 5 Fabricators . | . . . . . Repair Stations . | . . . . . Recycling Units . | . . . . . Scanalyzers . | . . . . . Garrison Access . | . . . . . Total Hacks 49 | . 5 4 21 19 Successful 23 | . 1 3 8 11 Failed 26 | . 4 1 13 8 Catastrophic 9 | . . 1 6 2 Database Lockouts . | . . . . . Manual 27 | . 3 3 8 13 Terminals 49 | . 5 4 21 19 Fabricators . | . . . . . Repair Stations . | . . . . . Recycling Units . | . . . . . Scanalyzers . | . . . . . Garrison Access . | . . . . . Terminal Hacks 12 | . 1 1 5 5 Record 1 | . . . . 1 Robot Analysis 2 | . 1 . . 1 Open Door 3 | . . . 3 . Emergency Access Points 1 | . . . . 1 Scanalyzer Index 1 | . . . . 1 Locate Traps 1 | . . . 1 . Investigation Status 1 | . . . . 1 Extermination Status 1 | . . . 1 . Reinforcement Status 1 | . . 1 . . Fabricator Hacks . | . . . . . Repair Station Hacks . | . . . . . Recycling Unit Hacks . | . . . . . Scanalyzer . | . . . . . Garrison Access Hacks . | . . . . . Unauthorized Hacks 11 | . . 2 3 6 Terminals 11 | . . 2 3 6 Track 3 | . . 1 . 2 Assimilate 1 | . . . . 1 Botnet 7 | . . 1 3 3 Fabricators . | . . . . . Repair Stations . | . . . . . Recycling Units . | . . . . . Scanalyzers . | . . . . . Garrison Access . | . . . . . Data Cores Recovered 1 | . . . . 1 Used 1 | . . . . 1 Hacking Detections 15 | . 2 1 7 5 Full Trace Events 2 | . . . 2 . Feedback Events . | . . . . . Feedback Blocked . | . . . . . Robot Schematics Acquired . | . . . . . Robots Built . | . . . . . Authchips . | . . . . . Time . | . . . . . Total Robot Build Rating . | . . . . . Part Schematics Acquired . | . . . . . Parts Built . | . . . . . Authchips . | . . . . . Time . | . . . . . Total Part Build Rating . | . . . . . Parts Repaired . | . . . . . Time . | . . . . . Parts Recycled . | . . . . . Recycled Matter . | . . . . . Retrieved Matter . | . . . . . Retrieved Components . | . . . . . Parts Scanalyzed . | . . . . . Part Schematics Acquired . | . . . . . Parts Damaged . | . . . . . Bothacking | -11 -10 -9 -9 -8 ------------ Run | Yrd Mat Mat Sto Mat Used RIF Installer . | . . . . . Robots Hacked . | . . . . . Non-combat . | . . . . . Combat . | . . . . . Robot Hacks Applied . | . . . . . Relay Couplers Released . | . . . . . Fabnet Peak Effective % . | . . . . . Robots Rewired . | . . . . . Allies Hacked . | . . . . . Hacks Repelled . | . . . . . Allies | -11 -10 -9 -9 -8 -------- Run | Yrd Mat Mat Sto Mat Total Allies 12 | . . . 12 . Largest Group 10 | . . . 10 5 Highest-Rated Group 88 | . . . 88 86 Highest-Rated Ally 31 | . . . 31 31 Total Orders . | . . . . . Ally Attacks 124 | . . . 71 53 Total Damage 1311 | . . . 550 761 Kills 22 | . . . 12 10 Allies Corrupted . | . . . . . Allies Melted . | . . . . . Intel | -11 -10 -9 -9 -8 ------- Run | Yrd Mat Mat Sto Mat Robot Analysis Total 2 | . 1 . . 1 Derelict Logs Recovered . | . . . . . Drone Launches 8 | . . . . 8 Drone Recoveries . | . . . . . Exploration | -11 -10 -9 -9 -8 ------------- Run | Yrd Mat Mat Sto Mat Turns Passed 1961 | 54 221 192 997 497 Spaces Moved 1097 | 40 142 90 507 318 Core 7 | 7 . . . . Treads . | . . . . . Legs 1090 | 33 142 90 507 318 Wheels . | . . . . . Hover . | . . . . . Flight . | . . . . . Fastest Speed 50 | 50 120 120 120 123 Average Speed 134 | 107 120 178 137 127 Slowest Speed 190 | 120 120 190 190 190 Overloaded Moves . | . . . . . Propulsion Burnouts . | . . . . . Robots Hopped . | . . . . . Cave-ins Triggered . | . . . . . Exploration Rate (%) 30 | 3 24 7 88 28 Regions Visited 4 Branch Regions 1 Pre-discovered Areas . | . . . . . Known Exits Taken . | . . . . . Unknown Exits Taken 4 | 1 1 1 1 . Scrap Searched . | . . . . . Spaces Dug . | . . . . . Terrain Destroyed 26 | . . . 26 . Melee . | . . . . . Projectile . | . . . . . AOE 26 | . . . 26 . Terrain Rammed . | . . . . . Walls Destroyed . | . . . . . Machines Disabled . | . . . . . Actions | -11 -10 -9 -9 -8 --------- Run | Yrd Mat Mat Sto Mat Total 1442 | 48 173 115 727 379 Wait 161 | . 14 . 123 24 Move 1093 | 39 141 89 506 318 Hop . | . . . . . Pick Up 27 | 1 5 8 10 3 Fast Attach 19 | 7 1 5 5 1 Attach 11 | . . 1 4 6 Detach 1 | 1 . . . . Swap 16 | . 2 3 8 3 Drop 29 | . 1 6 16 6 Fire 74 | . 9 3 47 15 Melee . | . . . . . Ram 2 | . . . . 2 Kick 4 | . . . 3 1 Crush . | . . . . . Escape Stasis 5 | . . . 5 . Rewire . | . . . . . Trap . | . . . . . Miscellaneous . | . . . . . Route ------- -11/Scrapyard -10/Materials (discovered 2 exits: *Mat / [*Min]) -9/Materials -9/Storage -8/Materials History --------- Turn | Location | Event 6 | -11/Scrapyard | Discovered new exit (range 13) 55 | -11/Scrapyard | Entered Materials 69 | -10/Materials | Discovered new exit (range 15) 273 | -10/Materials | Discovered new exit (range 3) 276 | -10/Materials | Entered another Materials area 276 | -9/Materials | Evolved 2 slots: Propulsion x1, Utility x1 319 | -9/Materials | Build established: Mutant 331 | -9/Materials | Discovered new exit (range 10) 468 | -9/Materials | Entered Storage 1223 | -9/Storage | Assisted by bots powering up and referring to "LRC-V3" 1335 | -9/Storage | Lost 7 allies 1353 | -9/Storage | Discovered new exit (range 15) 1421 | -9/Storage | Met a pair of Derelict thieves 1465 | -9/Storage | Entered Materials 1465 | -8/Materials | Accompanied by 5 allies 1465 | -8/Materials | Evolved 2 slots: Power x1, Utility x1 1892 | -8/Materials | Lost 3 allies 1948 | -8/Materials | Core integrity fell below 50% 1960 | -8/Materials | Core integrity fell below 20% 1962 | -8/Materials | Destroyed by G-47 Trooper with Particle Gun Last Messages --------------- Acquired 25 matter. [Achievement: Release The Drones!] Drone destroyed. R-06 Scavenger collects Wheel. R-06 Scavenger collects Aluminum Leg. Drone released from Drone Bay. K-01 Serf collects debris. Drone Bay destroyed. Overheating: Matter decay (-63). Acquired 63 matter. K-01 Serf collects debris. R-06 Scavenger collects Wheel. R-06 Scavenger collects Particle Gun. Drone Bay destroyed. >> Lost connection to Drone. K-01 Serf collects debris. >> Lost connection to Drone. Slammed into G-47 Trooper. Destabilizing: System corrupted (+1). Drone destroyed. Map ----- +----------------------------------------------------+ | "T" # #??????????# %#??????????????????????? | | # #??????????# #??????????????????????? | | ######## +??????????# % #???#?##???????????????? | | ???????# #??????????# #?? #???????????????? | | ???????# #??????????# #??"" #???????????????? | | ???????? ???????????# #?""" #???????????????? | | ??????????????????????# #?""" #???????????????? | | ??????????????????????# # #???????????????? | | ??????????????????????# # """ #???????????????? | | ??????????????????????# + """ #???????????????? | | ??????????????????????# # """ #???????????????? | | ??????????????????????# # #???????????????? | | ??????????????????????# #?""" #???????????????? | | ??????????????????###?# #?""" #???????????????? | | ??????????????????? # #??"" #???????????????? | | ?????????H?????????? # #?? #???????????????? | | ????????????????????? + g #???#?##???????????????? | | ??????????????????????#g #??????????????????????? | | ??????????????????????# gm#??????????????????????? | | ??????????????????????#nnn#??????????????????????? | | ?????????############?# nr#??????????????????????? | | ?????????# #* %#??????????????????????? | | ?????????# #n!n#??????????????????????? | | ?????????# /gbg#??????????????????????? | | ?????????# #kxg#??????????????????????? | | ?????????# #=g@#??????????????????????? | | ?????????############?#[xk#??????????????????????? | | ??????????????????????#*!%#??????????????????????? | | ??????????????????????#%=[#??????????????????????? | | ??????????????????????#|[!#??????????????????????? | | ??????????????????????*=%=+??????????????????????? | | ????????????????????? #=%%#??????????????????????? | | ????????????????????### r#??????????????????????? | | ??????????????????????# #??????????????????????? | | ?????????????????????? #??????????????????????? | | ?????????????????????? #??????????????????????? | | ????????????????????? #??????????????????????? | | ?????????????????????## +??????????????????????? | | ??????????????????????# #??????????????????????? | | ??????????????????????# #??????????????????????? | | ??????????????????????# #??????????????????????? | | ??????????????????????# #??????????????????????? | | ??????????????????????? ???????????????????????? | | ??????????????????????? ???????????????????????? | | ??????????????????????? ???????????????????????? | | ?????????????????????????????????????????????????? | | ?????????????????????????????????????????????????? | | ?????????????????????????????????????????????????? | | ?????????????????????????????????????????????????? | | ?????????????????????????????????????????????????? | +----------------------------------------------------+ Best States ------------- Heat Dissipation 31 Energy Generation 23 Energy Capacity 265 Matter Stores 300 Matter Capacity 300 Sight Range 16 Robot Scan Range 15 Terrain Scan Density 10 Armor Coverage 150 Evasion (%) 55 Targeting Accuracy 8 Item Schematics ----------------- None Robot Schematics ------------------ None Fabricated ------------ Nothing Alien Tech Used ----------------- None Achievements -------------- Release The Drones! Challenges ------------ None Game ------ Seed WeaponNovaStabilizer Manual? 0 Play Time 00:33:04 Cumulative 15.7 hours Start 2024.09.20 @ 18:15:52 End 2024.09.20 @ 18:46:35 Sessions 1 Manual Loads 0 Difficulty Rogue Special Mode None Game No. 18 Rogue 18 Adventurer 0 Explorer 0 Win Type - Total 0 Types 0/0/0/0/0/0/0/0/0 Lore% 11 Gallery% 21 Achievement% 19 Wizard Run 0 Options --------- Layout 1 ASCII 0 Keyboard 0 Movement Mouse Keybinds 0 Fullscreen 1 Font 24/Smallcaps Map View 50x35 Zoom Use 0% Tactical HUD 0 Map Filters NONE Filters NONE Steam 1 RUN: 3739205f-f0c4-495f-8f10-5c2d40e27acf